fUSD/lending_fUSD_20250724
["ID","MTS","AMOUNT","RATE_DAILY","PERIOD"]
[374502339,1753327841507,-151.0,0.00023262,7]
[374502341,1753327841518,-151.0,0.00023262,7]
[374502343,1753327841526,-151.0,0.00023262,7]
[374502345,1753327841536,-151.617608,0.00023262,7]
[374502347,1753327841545,-151.617608,0.00023262,7]
[374502349,1753327841555,-151.0,0.00023262,7]
[374502351,1753327841564,-477.18900901,0.00023262,7]
[374502353,1753327841573,-211.01152796,0.00023262,7]
[374502355,1753327841583,-709.77652904,0.00023274,2]
[374502357,1753327841592,-150.0,0.00023274,2]
[374502359,1753327841601,-150.0,0.00023274,2]
[374502361,1753327841610,-150.0,0.00023274,2]
[374502363,1753327841619,-500.0,0.00023274,2]
[374502365,1753327841629,-500.0,0.00023274,2]
[374502367,1753327841638,-500.0,0.00023274,2]
[374502369,1753327841647,-150.0,0.00023274,2]
[374502371,1753327841658,-192.4966852,0.00023274,2]
[374502373,1753327841667,-150.0,0.00023274,2]
[374502374,1753327841676,-500.0,0.00023274,2]
[374502376,1753327841686,-2000.0,0.000233,2]
[374502378,1753327841695,-230.0,0.00023324,2]
[374502380,1753327841704,-238.006467,0.00023364,7]
[374502382,1753327841714,-238.006467,0.00023364,7]
[374502384,1753327841724,-200.0,0.00023364,2]
[374502386,1753327841734,-381.0,0.000234,2]
[374502389,1753327841754,-151.0,0.000234,7]
[374502390,1753327841775,-151.0,0.000234,7]
[374502392,1753327841797,-152.008378,0.000234,7]
[374502394,1753327841817,-239.0,0.000234,2]
[374502397,1753327841827,-230.0,0.00023409,2]
[374502398,1753327841837,-1312.366983,0.00023422,8]
[374502400,1753327841846,-709.77652904,0.00023426,2]
[374502402,1753327841856,-150.0,0.00023468,7]
[374502404,1753327841865,-150.0,0.00023468,7]
[374502407,1753327841875,-152.5227261,0.00023468,7]
[374502408,1753327841884,-154.02646434,0.00023468,7]
[374502411,1753327841894,-206.54055567,0.00023468,7]
[374502413,1753327841903,-150.94768101,0.00023468,2]
[374502415,1753327841912,-155.68723358,0.00023468,7]
[374502416,1753327841921,-1800.14485223,0.00023476,2]
[374502419,1753327841931,-297.99717384,0.00023486,9]
[374502421,1753327841940,-303.3817,0.000235,2]
[374502422,1753327841951,-162.0423,0.000235,2]
[374502425,1753327841964,-920.9887,0.000235,2]
[374502426,1753327841973,-286.93884019,0.000235,2]
[374502428,1753327841983,-1156.07789672,0.00023508,2]
[374502431,1753327841993,-2144.60344683,0.00023525,2]
[374502433,1753327842004,-157.48310487,0.00023526,2]
[374502434,1753327842013,-230.0,0.0002354,2]
[374502437,1753327842023,-253.19896357,0.00023548,2]
[374502439,1753327842033,-150.0,0.00023548,2]
[374502441,1753327842043,-152.95624327,0.00023548,2]
[374502442,1753327842053,-500.0,0.00023548,2]
[374502444,1753327842063,-247.30965903,0.00023548,2]
[374502447,1753327842072,-500.0,0.00023548,2]
[374502449,1753327842082,-150.0,0.00023548,2]
[374502451,1753327842091,-150.0,0.00023548,2]
[374502453,1753327842101,-500.0,0.00023548,2]
[374502454,1753327842110,-230.0,0.00023552,2]
[374502457,1753327842119,-500.0,0.00023573,2]
[374502459,1753327842129,-500.0,0.00023573,2]
[374502460,1753327842138,-709.77652904,0.00023579,2]
[374502462,1753327842147,-165.42,0.0002359,2]
[374502465,1753327842157,-774.78,0.0002359,2]
[374502467,1753327842167,-306.76977049,0.00023599,2]
[374502468,1753327842176,-134000.0,0.000236,2]
[374502471,1753327842187,-151.0,0.000236,7]
[374502472,1753327842196,-151.0,0.000236,7]
[374502475,1753327842206,-151.0,0.000236,7]
[374502476,1753327842216,-151.0,0.000236,7]
[374502479,1753327842227,-234.372543,0.000236,7]
[374502480,1753327842238,-151.0,0.000236,7]
[374502483,1753327842248,-151.0,0.000236,7]
[374502485,1753327842259,-151.0,0.000236,7]
[374502487,1753327842268,-151.0,0.000236,7]
[374502488,1753327842278,-156.693148,0.000236,7]
[374502490,1753327842290,-156.693148,0.000236,7]
[374502493,1753327842299,-151.0,0.000236,7]
[374502494,1753327842310,-404997.66275356,0.00023625,2]
[374502508,1753327842433,-578.8551339,0.00023625,2]
[374502726,1753327844734,-311.65860831,0.00022959,2]
[374502727,1753327844827,-188.34139169,0.00022959,2]
[374502728,1753327844837,-500.0,0.00022959,2]
[374502729,1753327844846,-500.0,0.00022959,2]
[374502730,1753327844856,-500.0,0.00022959,2]
[374502731,1753327844865,-491.5936194,0.00022959,2]
[374502878,1753327868648,343.739325,7.945e-05,2]
[374502879,1753328003510,500.0,0.00027397,120]
[374502880,1753328023713,205.00016625,0.00016633,2]
[374502882,1753328060550,450.0,0.00016633,2]
[374502883,1753328096506,5954.06799999,0.00027397,120]
[374502884,1753328146170,500.0,0.00016633,2]
[374502885,1753328355698,450.0,0.00016633,2]
[374502886,1753328480906,450.0,0.00016633,2]
[374502887,1753328549562,250.0,0.00015,2]
[374502889,1753328562082,157.04,0.00013699,2]
[374502891,1753328598891,500.0,0.00027397,120]
[374502893,1753328643825,164.68,0.00027118,120]
[374502894,1753328678703,-178.0,0.00016972,2]
[374502895,1753328678726,-300.0,0.00016972,2]
[374502896,1753328678748,-300.0,0.00017471,2]
[374502897,1753328678773,-334.27156725,0.00017821,2]
[374502898,1753328678795,-340.90610941,0.00017821,2]
[374502899,1753328678819,-300.0,0.00018669,2]
[374502900,1753328678841,-250.0,0.00018669,2]
[374502901,1753328678864,-300.0,0.00018669,2]
[374502902,1753328678888,-1200.0,0.00019163,2]
[374502903,1753328678911,-832.55,0.00019178,2]
[374502904,1753328678933,-300.0,0.0001978,2]
[374502905,1753328678955,-500.0,0.00019781,2]
[374502906,1753328678980,-500.0,0.00019781,2]
[374502907,1753328679001,-500.0,0.00019781,2]
[374502908,1753328679022,-500.0,0.00019781,2]
[374502909,1753328679043,-500.0,0.00019781,2]
[374502910,1753328679065,-311.66760876,0.00019781,2]
[374502911,1753328679086,-832.55,0.00020773,2]
[374502912,1753328679111,-200.60892279,0.000209,4]
[374502913,1753328679132,-1680.0,0.00020986,2]
[374502914,1753328679153,-151.0,0.00020987,2]
[374502915,1753328679177,-165.9543953,0.00020987,2]
[374502916,1753328679197,-600.0,0.00020987,2]
[374502917,1753328679221,-600.0,0.00020987,2]
[374502918,1753328679242,-151.0,0.00020987,2]
[374502919,1753328679264,-600.0,0.00020987,2]
[374502920,1753328679285,-600.0,0.00020987,2]
[374502921,1753328679306,-600.0,0.00020987,2]
[374502922,1753328679327,-600.0,0.00020987,2]
[374502923,1753328679348,-600.0,0.00020987,2]
[374502924,1753328679368,-600.0,0.00020987,2]
[374502925,1753328679390,-600.0,0.00020987,2]
[374502926,1753328679411,-600.0,0.00020987,2]
[374502927,1753328679432,-600.0,0.00020987,2]
[374502928,1753328679453,-600.0,0.00020987,2]
[374502929,1753328679474,-265.52485788,0.00020987,2]
[374502930,1753328679495,-2390.0,0.00021,2]
[374502931,1753328679520,-200.60892265,0.00021216,4]
[374502932,1753328679542,-157.04,0.00021404,2]
[374502933,1753328679562,-228.93772589,0.00021518,2]
[374502934,1753328679584,-157.92,0.00021526,2]
[374502935,1753328679609,-200.60892265,0.00021532,5]
[374502959,1753329032383,-2735.47812588,0.00021,5]
[374502960,1753329032394,-151.0,0.00021526,2]
[374502961,1753329032404,-151.81878931,0.00021526,2]
[374502962,1753329032415,-392.79,0.00021618,2]
[374502963,1753329032426,-164.68,0.00021695,2]
[374502964,1753329032436,-4982.16427621,0.00021695,2]
[374502965,1753329032523,-417.49656767,0.00021695,2]
[374502966,1753329032595,-649.18915612,0.00021695,2]
[374502967,1753329032607,-157.92,0.00021742,2]
[374502968,1753329032617,-151.58295351,0.00021864,2]
[374502969,1753329032627,-206.01938121,0.000219,6]
[374502970,1753329032636,-666.0,0.0002191,3]
[374502971,1753329032648,-252.85977436,0.00021953,2]
[374502972,1753329032658,-1000.0,0.00021958,2]
[374502973,1753329032669,-1200.0,0.00021986,2]
[374502974,1753329032678,-298.0,0.00021986,2]
[374502975,1753329032689,-239.84119403,0.00021987,2]
[374502976,1753329032698,-4998.2484118,0.00021987,2]
[374502977,1753329032708,-5000.37452,0.00022,2]
[374502978,1753329032717,-688.0,0.00022,2]
[374502979,1753329032727,-171.0,0.00022,2]
[374502980,1753329032738,-180.0,0.00022081,7]
[374502981,1753329032748,-168.25,0.00022172,2]
[374502982,1753329032759,-211.01152796,0.00022185,2]
[374502983,1753329032768,-818.04,0.00022187,2]
[374502984,1753329032780,-171.0,0.00022192,7]
[374502985,1753329032791,-206.01938104,0.00022194,6]
[374502986,1753329032800,-203.11,0.00022243,2]
[374502987,1753329032810,-196.63,0.00022274,2]
[374502988,1753329032820,-711.01,0.00022309,2]
[374502989,1753329032830,-832.55,0.00022368,2]
[374502991,1753329032844,-154.27336659,0.00022384,30]
[374502992,1753329032853,-206.01938104,0.00022488,7]
[374502993,1753329032862,-260.0,0.00022493,2]
[374502995,1753329032873,-154.27336659,0.00022493,30]
[374502997,1753329032882,-228.95,0.000225,2]
[374502999,1753329032891,-154.27336659,0.0002263,30]
[374503001,1753329032902,-2022.58,0.0002263,2]
[374503003,1753329032912,-351.04,0.00022664,2]
[374503005,1753329032922,-154.27336659,0.0002274,30]
[374503007,1753329032932,-600.0,0.00022748,2]
[374503009,1753329032942,-155.21285303,0.00022748,2]
[374503012,1753329032951,-785.86990928,0.00022761,2]
[374503014,1753329032963,-224.2872805,0.00022761,2]
[374503016,1753329032972,-807.0,0.00022762,2]
[374503018,1753329032982,-3354.0,0.00022762,2]
[374503020,1753329032992,-953.0,0.00022762,2]
[374503022,1753329033001,-1272.615,0.00022762,2]
[374503024,1753329033011,-978.862,0.00022762,2]
[374503026,1753329033022,-563.0,0.00022762,2]
[374503028,1753329033032,-2018.0,0.00022762,2]
[374503030,1753329033042,-890.0,0.00022762,2]
[374503032,1753329033053,-1186.018,0.00022762,2]
[374503034,1753329033063,-1688.0,0.00022762,2]
[374503036,1753329033073,-596.0,0.00022762,2]
[374503038,1753329033083,-1403.852,0.00022762,2]
[374503040,1753329033093,-21379.0,0.00022762,2]
[374503042,1753329033104,-6055.0,0.00022762,2]
[374503044,1753329033114,-4129.0,0.00022762,2]
[374503046,1753329033124,-206.01938104,0.00022782,7]
[374503048,1753329033133,-154.27336659,0.00022877,30]
[374503050,1753329033144,-470.99,0.00022978,2]
[374503052,1753329033154,-154.27336659,0.00022986,30]
[374503054,1753329033163,-1000.0,0.00023,2]
[374503056,1753329033174,-1589.34,0.00023,2]
[374503058,1753329033184,-1000.0,0.00023,2]
[374503060,1753329033194,-1000.0,0.00023,2]
[374503062,1753329033203,-1000.0,0.00023,2]
[374503095,1753329033538,-5000.0,0.00023,2]
[374503100,1753329033583,-1000.0,0.00023,2]
[374503102,1753329033593,-1000.0,0.00023,2]
[374503104,1753329033603,-1000.0,0.00023,2]
[374503106,1753329033613,-171.0,0.00023014,7]
[374503107,1753329033623,-502.28162665,0.0002304,2]
[374503109,1753329033633,-501.98943158,0.0002304,2]
[374503112,1753329033643,-500.72860433,0.00023075,2]
[374503113,1753329033653,-500.0,0.00023075,2]
[374503116,1753329033663,-500.0,0.00023075,2]
[374503117,1753329033672,-206.01938104,0.00023076,8]
[374503119,1753329033681,-2500.0,0.000231,2]
[374503121,1753329033691,-900.0,0.00023121,8]
[374503123,1753329033700,-900.0,0.00023121,8]
[374503125,1753329033710,-900.0,0.00023121,8]
[374503127,1753329033721,-900.0,0.00023121,8]
[374503129,1753329033732,-900.0,0.00023121,8]
[374503131,1753329033743,-900.0,0.00023121,8]
[374503133,1753329033752,-900.0,0.00023121,8]
[374503135,1753329033761,-900.0,0.00023121,8]
[374503137,1753329033771,-900.0,0.00023121,8]
[374503139,1753329033781,-900.0,0.00023121,8]
[374503141,1753329033791,-900.0,0.00023121,8]
[374503143,1753329033801,-900.0,0.00023121,8]
[374503145,1753329033811,-479.68931776,0.00023121,8]
[374503251,1753329035033,-420.31068224,0.00023121,8]
[374503252,1753329035042,-927.32369586,0.00023121,8]
[374503254,1753329035052,-154.27336659,0.00023123,30]
[374503256,1753329035061,-900.0,0.00023132,8]
[374503258,1753329035070,-900.0,0.00023132,8]
[374503260,1753329035080,-900.0,0.00023132,8]
[374503262,1753329035089,-900.0,0.00023132,8]
[374503264,1753329035099,-900.0,0.00023132,8]
[374503266,1753329035109,-900.0,0.00023132,8]
[374503268,1753329035118,-900.0,0.00023132,8]
[374503270,1753329035127,-900.0,0.00023132,8]
[374503272,1753329035137,-900.0,0.00023132,8]
[374503274,1753329035145,-288.62220823,0.00023132,8]
[374503276,1753329035155,-168.43136081,0.0002314,2]
[374503278,1753329035165,-500.0,0.0002314,2]
[374503280,1753329035174,-500.0,0.0002314,2]
[374503282,1753329035184,-214.55,0.00023153,2]
[374503284,1753329035193,-674.0,0.0002318,2]
[374503286,1753329035203,-2914.278,0.00023194,3]
[374503288,1753329035213,-154.27336659,0.00023233,30]
[374503291,1753329035225,-501.87111388,0.0002325,2]
[374503293,1753329035235,-500.0,0.00023275,2]
[374503295,1753329035244,-600.0,0.00023296,2]
[374503296,1753329035254,-2000.0,0.000233,2]
[374503298,1753329035264,-222.794,0.000233,3]
[374503301,1753329035275,-221.25904087,0.0002332,2]
[374503303,1753329035287,-502.73187401,0.0002332,2]
[374503305,1753329035297,-1118.0,0.00023343,2]
[374503307,1753329035307,-248.71531821,0.00023356,2]
[374503309,1753329035316,-338.39,0.00023368,2]
[374503311,1753329035327,-150.99,0.00023368,2]
[374503313,1753329035336,-154.27336659,0.0002337,30]
[374503315,1753329035346,-206.01938104,0.00023371,9]
[374503316,1753329035355,-1813.805804,0.000234,7]
[374503318,1753329035364,-1813.805804,0.000234,7]
[374503320,1753329035374,-187.189942,0.000234,7]
[374503322,1753329035384,-187.189942,0.000234,7]
[374503325,1753329035394,-151.0,0.000234,7]
[374503327,1753329035405,-151.0,0.000234,7]
[374503329,1753329035415,-153.101665,0.000234,7]
[374503330,1753329035425,-153.101665,0.000234,7]
[374503332,1753329035434,-158.423995,0.000234,7]
[374503334,1753329035444,-1093.639153,0.00023422,8]
[374503336,1753329035454,-1521.98931467,0.00023448,2]
[374503339,1753329035464,-251.83047197,0.00023468,7]
[374503340,1753329035473,-150.0,0.00023468,7]
[374503343,1753329035483,-150.0,0.00023468,7]
[374503344,1753329035492,-248.05373259,0.00023468,7]
[374503346,1753329035502,-500.0,0.00023468,7]
[374503348,1753329035511,-150.0,0.00023468,7]
[374503350,1753329035522,-325.01637712,0.00023468,7]
[374503361,1753329035628,-174.98362288,0.00023468,7]
[374503363,1753329035638,-150.12659445,0.00023468,7]
[374503365,1753329035648,-150.0,0.00023468,7]
[374503367,1753329035657,-150.0,0.00023468,7]
[374503368,1753329035668,-500.0,0.00023468,7]
[374503371,1753329035678,-946.0,0.000235,2]
[374503372,1753329035689,-773.0,0.000235,2]
[374503374,1753329035699,-239.0,0.000235,2]
[374503376,1753329035708,-775.06242454,0.000235,2]
[374503378,1753329035718,-1118.0,0.0002353,2]
[374503380,1753329035727,-206.44199509,0.00023548,2]
[374503382,1753329035737,-253.19896357,0.00023548,2]
[374503384,1753329035746,-1354.22166099,0.00023548,2]
[374503387,1753329035758,-564.77833901,0.00023548,2]
[374503389,1753329035767,-150.0,0.00023548,2]
[374503391,1753329035777,-152.5227261,0.00023548,2]
[374503393,1753329035786,-150.0,0.00023548,2]
[374503395,1753329035795,-152.95624327,0.00023548,2]
[374503397,1753329035805,-150.0,0.00023548,2]
[374503399,1753329035815,-150.94768101,0.00023548,2]
[374503401,1753329035825,-155.68723358,0.00023548,2]
[374503403,1753329035834,-150.0,0.00023548,2]
[374503405,1753329035845,-920.0,0.00023548,2]
[374503407,1753329035855,-150.0,0.00023548,2]
[374503408,1753329035866,-151.10670198,0.00023548,2]
[374503411,1753329035877,-200.0,0.00023572,2]
[374503413,1753329035886,-503.61197692,0.00023573,2]
[374503415,1753329035896,-284.44,0.0002359,2]
[374503417,1753329035906,-775.06242452,0.00023595,2]
[374503419,1753329035915,-1813.805804,0.000236,7]
[374503421,1753329035925,-1813.805804,0.000236,7]
[374503423,1753329035934,-1813.805804,0.000236,7]
[374503424,1753329035943,-1813.805804,0.000236,7]
[374503425,1753329035952,-187.189942,0.000236,7]
[374503427,1753329035963,-187.189942,0.000236,7]
[374503429,1753329035973,-151.0,0.000236,7]
[374503431,1753329035983,-151.0,0.000236,7]
[374503433,1753329035992,-151.0,0.000236,7]
[374503435,1753329036001,-151.0,0.000236,7]
[374503437,1753329036011,-153.101665,0.000236,7]
[374503439,1753329036021,-153.101665,0.000236,7]
[374503441,1753329036030,-153.101665,0.000236,7]
[374503443,1753329036040,-153.101665,0.000236,7]
[374503445,1753329036049,-477.18900901,0.000236,7]
[374503447,1753329036059,-211.01152796,0.000236,7]
[374503449,1753329036069,-355.91893502,0.00023601,2]
[374503451,1753329036078,-206.01938104,0.00023665,9]
[374503453,1753329036088,-169.84,0.00023665,2]
[374503455,1753329036098,-500.0,0.00023688,2]
[374503457,1753329036107,-505.09907916,0.00023688,2]
[374503459,1753329036117,-775.06242452,0.00023689,2]
[374503460,1753329036126,-1000.0,0.00023699,2]
[374503461,1753329036136,-230.0,0.00023706,2]
[374503462,1753329036146,-150.0,0.00023727,2]
[374503463,1753329036155,-150.0,0.00023728,2]
[374503464,1753329036165,-150.0,0.0002373,2]
[374503465,1753329036175,-154.04615813,0.00023731,2]
[374503466,1753329036185,-150.0,0.00023734,2]
[374503467,1753329036195,-150.0,0.00023737,2]
[374503468,1753329036205,-150.0,0.00023737,2]
[374503469,1753329036215,-150.0,0.00023738,2]
[374503470,1753329036224,-150.0,0.0002374,2]
[374503471,1753329036234,-150.0,0.00023742,7]
[374503472,1753329036243,-207.62390603,0.00023742,7]
[374503473,1753329036253,-500.0,0.00023742,7]
[374503474,1753329036262,-150.0,0.00023742,7]
[374503475,1753329036274,-500.0,0.00023742,7]
[374503476,1753329036285,-150.0,0.00023742,7]
[374503477,1753329036295,-150.0,0.00023742,7]
[374503478,1753329036305,-500.0,0.00023742,7]
[374503479,1753329036315,-274.913957,0.00023742,2]
[374503480,1753329036325,-150.0,0.00023743,2]
[374503481,1753329036335,-150.0,0.00023744,2]
[374503482,1753329036344,-150.0,0.00023745,2]
[374503483,1753329036353,-1000.0,0.00023747,2]
[374503484,1753329036363,-150.0,0.00023749,2]
[374503485,1753329036372,-150.0,0.00023757,2]
[374503486,1753329036382,-150.0,0.00023762,2]
[374503487,1753329036391,-150.0,0.00023766,2]
[374503488,1753329036401,-150.0,0.0002377,2]
[374503489,1753329036410,-920.9887,0.00023771,2]
[374503490,1753329036420,-150.0,0.00023775,2]
[374503491,1753329036429,-150.0,0.00023777,2]
[374503492,1753329036439,-2500.0,0.00023779,2]
[374503493,1753329036448,-2500.0,0.00023779,2]
[374503494,1753329036458,-150.0,0.0002378,2]
[374503495,1753329036469,-775.06242452,0.00023784,2]
[374503496,1753329036479,-657.12427894,0.00023788,2]
[374503497,1753329036488,-303.3817,0.00023789,2]
[374503498,1753329036498,-150.0,0.0002379,2]
[374503499,1753329036507,-179.17813624,0.00023792,2]
[374503500,1753329036516,-393.35213223,0.00023792,2]
[374503501,1753329036527,-150.0,0.00023794,2]
[374503502,1753329036537,-150.0,0.00023798,2]
[374503503,1753329036546,-150.0,0.00023799,2]
[374503504,1753329036556,-150.0,0.00023805,2]
[374503505,1753329036565,-150.0,0.00023805,2]
[374503506,1753329036575,-150.0,0.00023807,2]
[374503507,1753329036585,-150.0,0.00023808,2]
[374503508,1753329036594,-351.04,0.00023808,2]
[374503509,1753329036604,-150.0,0.00023809,2]
[374503510,1753329036613,-150.0,0.0002381,2]
[374503511,1753329036623,-1000.0,0.00023812,2]
[374503512,1753329036632,-150.0,0.00023812,2]
[374503513,1753329036642,-213.29573554,0.00023812,2]
[374503514,1753329036652,-150.0,0.00023815,2]
[374503515,1753329036661,-150.0,0.00023818,2]
[374503516,1753329036671,-150.0,0.00023818,2]
[374503517,1753329036680,-150.0,0.00023821,2]
[374503518,1753329036689,-1919.0,0.00023822,2]
[374503519,1753329036699,-154.02646434,0.00023822,2]
[374503520,1753329036708,-150.0,0.00023822,2]
[374503521,1753329036717,-150.0,0.00023822,2]
[374503522,1753329036726,-920.0,0.00023822,2]
[374503523,1753329036735,-150.0,0.00023822,2]
[374503524,1753329036744,-150.0,0.00023822,2]
[374503525,1753329036753,-150.0,0.00023827,2]
[374503526,1753329036762,-150.0,0.00023828,2]
[374503527,1753329036772,-150.0,0.00023829,2]
[374503528,1753329036784,-150.0,0.0002383,2]
[374503529,1753329036794,-1521.98931461,0.00023832,2]
[374503530,1753329036803,-150.0,0.00023833,2]
[374503531,1753329036813,-150.0,0.00023834,2]
[374503532,1753329036822,-653.56,0.00023836,2]
[374503533,1753329036831,-1104.7771,0.00023837,2]
[374503534,1753329036841,-150.0,0.00023837,2]
[374503535,1753329036851,-500.0,0.00023837,2]
[374503536,1753329036860,-500.0,0.00023837,2]
[374503537,1753329036869,-500.0,0.00023837,2]
[374503538,1753329036878,-500.0,0.00023837,2]
[374503539,1753329036887,-500.0,0.00023837,2]
[374503540,1753329037166,-500.0,0.00023837,2]
[374503541,1753329037176,-500.0,0.00023837,2]
[374503542,1753329037186,-500.0,0.00023837,2]
[374503543,1753329037194,-500.0,0.00023837,2]
[374503544,1753329037203,-500.0,0.00023837,2]
[374503545,1753329037211,-500.0,0.00023837,2]
[374503546,1753329037222,-500.0,0.00023837,2]
[374503547,1753329037232,-500.0,0.00023837,2]
[374503548,1753329037248,-500.0,0.00023837,2]
[374503549,1753329037267,-500.0,0.00023837,2]
[374503550,1753329037279,-500.0,0.00023837,2]
[374503551,1753329037290,-500.0,0.00023837,2]
[374503552,1753329037299,-500.0,0.00023837,2]
[374503553,1753329037310,-500.0,0.00023837,2]
[374503554,1753329037321,-157.48310487,0.00023842,2]
[374503555,1753329037332,-150.0,0.00023842,2]
[374503556,1753329037342,-150.0,0.00023843,2]
[374503557,1753329037353,-150.0,0.00023844,2]
[374503558,1753329037366,-150.0,0.00023844,2]
[374503559,1753329037377,-3510.19536394,0.00023845,2]
[374503560,1753329037387,-150.0,0.00023847,2]
[374503561,1753329037397,-150.0,0.00023849,2]
[374503562,1753329037407,-150.0,0.00023854,2]
[374503563,1753329037416,-150.0,0.00023855,2]
[374503564,1753329037425,-150.0,0.00023856,2]
[374503565,1753329037435,-150.0,0.00023859,2]
[374503566,1753329037444,-150.0,0.00023863,2]
[374503567,1753329037454,-150.0,0.00023866,2]
[374503568,1753329037465,-150.0,0.00023868,2]
[374503569,1753329037474,-150.0,0.00023868,2]
[374503570,1753329037485,-150.0,0.00023871,2]
[374503571,1753329037494,-150.0,0.00023871,2]
[374503572,1753329037506,-1000.0,0.00023876,2]
[374503573,1753329037517,-150.0,0.00023877,2]
[374503574,1753329037527,-775.06242452,0.00023879,2]
[374503575,1753329037537,-193.7,0.00023879,2]
[374503576,1753329037546,-2001.9042,0.0002388,2]
[374503577,1753329037557,-2000.0,0.0002388,2]
[374503578,1753329037567,-150.0,0.00023882,2]
[374503579,1753329037576,-150.0,0.00023883,2]
[374503580,1753329037586,-150.0,0.00023888,2]
[374503581,1753329037596,-152.608445,0.00023889,7]
[374503582,1753329037607,-151.257387,0.00023889,7]
[374503583,1753329037619,-151.0,0.00023889,7]
[374503584,1753329037630,-151.0,0.00023889,7]
[374503585,1753329037640,-151.0,0.00023889,7]
[374503586,1753329037651,-151.0,0.00023889,7]
[374503587,1753329037661,-151.0,0.00023889,7]
[374503588,1753329037671,-151.0,0.00023889,7]
[374503589,1753329037681,-153.477329,0.00023889,7]
[374503590,1753329037691,-151.0,0.00023889,7]
[374503591,1753329037702,-151.0,0.00023889,7]
[374503592,1753329037711,-151.0,0.00023889,7]
[374503593,1753329037722,-151.0,0.00023889,7]
[374503594,1753329037732,-279.599903,0.00023889,7]
[374503595,1753329037742,-151.0,0.00023889,7]
[374503596,1753329037752,-151.0,0.00023889,7]
[374503597,1753329037761,-151.0,0.00023889,7]
[374503598,1753329037771,-151.0,0.00023889,7]
[374503599,1753329037781,-156.693148,0.00023889,7]
[374503600,1753329037791,-156.693148,0.00023889,7]
[374503601,1753329037801,-156.693148,0.00023889,7]
[374503602,1753329037810,-156.693148,0.00023889,7]
[374503603,1753329037820,-151.0,0.00023889,7]
[374503604,1753329037831,-151.0,0.00023889,7]
[374503605,1753329037841,-1813.805804,0.00023889,7]
[374503606,1753329037851,-1813.805804,0.00023889,7]
[374503607,1753329037860,-187.189942,0.00023889,7]
[374503608,1753329037869,-187.189942,0.00023889,7]
[374503609,1753329037879,-187.189942,0.00023889,7]
[374503610,1753329037889,-187.189942,0.00023889,7]
[374503611,1753329037900,-151.0,0.00023889,7]
[374503612,1753329037909,-255.000881,0.00023889,7]
[374503613,1753329037919,-153.101665,0.00023889,7]
[374503614,1753329037929,-153.101665,0.00023889,7]
[374503615,1753329037939,-5314.5802427,0.00023889,2]
[374503616,1753329037948,-347.720217,0.00023889,2]
[374503617,1753329037958,-35667.9111661,0.00023889,2]
[374503618,1753329037968,-409.28104749,0.00023889,2]
[374503619,1753329037977,-56023.4516442,0.00023889,2]
[374503620,1753329037987,-500.0,0.00023889,2]
[374503621,1753329037996,-500.0,0.00023889,2]
[374503622,1753329038005,-371.99093238,0.00023889,2]
[374503623,1753329038015,-310.8543323,0.00023889,2]
[374503624,1753329038025,-500.0,0.00023889,2]